{"text_format":"1","workbook":"xlsx","n_sheets":13,"sheets":["Auvergne-Rhône-Alpes","Bourgogne-Franche-Comté","Bretagne ","Centre-Val de Loire ","Grand Est","Hauts-de-France","Ile-de-France","Normandie ","Nouvelle-Aquitaine","Occitanie","Pays de la Loire ","PACAC","feuil1"],"not_rendered":{"charts":0,"images":0,"macros":0,"external_links":0,"defined_names":6,"comments":0,"pivot_tables":0},"unopened":[],"bounds":{"document_bytes":16777216,"sheet_cells":100000,"rows_first":2000,"rows_last":500,"rows_between":2000,"halvings":0,"cell_chars":16384,"cell_head_chars":4096},"cells_cut":0,"cells_raw":0,"read":"whole","date_system":"1900"}

{"sheet":"Auvergne-Rhône-Alpes","index":0,"n_rows":34,"n_cols":7,"rows_kept":34,"cut":false,"hidden":false,"merged":[]}
["AUVERGNE-RHÔNE-ALPES"]
[]
[{"$f":"\"Perspectives d'évolution des effectifs cadres et salariés par taille d'établissement pour \"&annéeN1","v":"Perspectives d'évolution des effectifs cadres et salariés par taille d'établissement pour 2017"}]
[]
["Par taille d'établissement","Croissance de l'effectif cadre","Réduction de l'effectif cadre",null,"Par taille d'établissement","Croissance de l'effectif salarié","Réduction de l'effectif salarié"]
["moins de 50 salariés",null,null,null,"moins de 50 salariés"]
["de 50 à 99 salariés",null,null,null,"de 50 à 99 salariés"]
["de 100 à 199 salariés",null,null,null,"de 100 à 199 salariés"]
["de 200 à 499 salariés",null,null,null,"de 200 à 499 salariés"]
["500 salariés et plus",null,null,null,"500 salariés et plus"]
[]
[]
[]
[{"$f":"\"Perspectives d'évolution des effectifs cadres et salariés par département pour \"&annéeN1","v":"Perspectives d'évolution des effectifs cadres et salariés par département pour 2017"}]
[]
["Par département","Croissance de l'effectif cadre","Réduction de l'effectif cadre",null,"Par département","Croissance de l'effectif salarié","Réduction de l'effectif salarié"]
["Loire (42) + Haute-Loire (43)",null,null,null,"Loire (42) + Haute-Loire (43)"]
["Allier(03) + Puy-de-Dôme (63) + Cantal (15)",null,null,null,"Allier(03) + Puy-de-Dôme (63) + Cantal (15)"]
["Ardèche (07) + Drôme (26)",null,null,null,"Ardèche (07) + Drôme (26)"]
["Ain (01)",null,null,null,"Ain (01)"]
["Isère (38)",null,null,null,"Isère (38)"]
["Rhône (69)",null,null,null,"Rhône (69)"]
["Savoie (73)",null,null,null,"Savoie (73)"]
["Haute-Savoie (74)",null,null,null,"Haute-Savoie (74)"]
[]
[]
[]
[{"$f":"\"Perspectives d'évolution des effectifs cadres et salariés par grands secteurs d'activité pour \"&annéeN1","v":"Perspectives d'évolution des effectifs cadres et salariés par grands secteurs d'activité pour 2017"}]
[]
["Par grands secteurs","Croissance de l'effectif cadre","Réduction de l'effectif cadre",null,"Par grands secteurs","Croissance de l'effectif salarié","Réduction de l'effectif salarié"]
["Industrie",null,null,null,"Industrie"]
["Construction",null,null,null,"Construction"]
["Commerce",null,null,null,"Commerce"]
["Secteur",null,null,null,"Secteur"]

{"sheet":"Bourgogne-Franche-Comté","index":1,"n_rows":34,"n_cols":7,"rows_kept":34,"cut":false,"hidden":false,"merged":[]}
["BOURGOGNE-FRANCHE-COMTE"]
[]
[{"$f":"\"Perspectives d'évolution des effectifs cadres et salariés par taille d'établissement pour \"&annéeN1","v":"Perspectives d'évolution des effectifs cadres et salariés par taille d'établissement pour 2017"}]
[]
["Par taille d'établissement","Croissance de l'effectif cadre","Réduction de l'effectif cadre",null,"Par taille d'établissement","Croissance de l'effectif salarié","Réduction de l'effectif salarié"]
["moins de 50 salariés",null,null,null,"moins de 50 salariés"]
["de 50 à 199 salariés",null,null,null,"de 50 à 199 salariés"]
["200 salariés et plus",null,null,null,"200 salariés et plus"]
[]
[]
[]
[]
[]
[{"$f":"\"Perspectives d'évolution des effectifs cadres et salariés par département pour \"&annéeN1","v":"Perspectives d'évolution des effectifs cadres et salariés par département pour 2017"}]
[]
["Par département","Croissance de l'effectif cadre","Réduction de l'effectif cadre",null,"Par département","Croissance de l'effectif salarié","Réduction de l'effectif salarié"]
["Côte-dOr (21)",null,null,null,"Côte-dOr (21)"]
["Nièvre (58) + Yonne (89)",null,null,null,"Nièvre (58) + Yonne (89)"]
["Saône-et-Loire (71)",null,null,null,"Saône-et-Loire (71)"]
["Haute-Saone (70) + Territoire de Belfort (90)",null,null,null,"Haute-Saone (70) + Territoire de Belfort (90)"]
["Jura (25) + Doubs (39)",null,null,null,"Jura (25) + Doubs (39)"]
[]
[]
[]
[]
[]
[]
[{"$f":"\"Perspectives d'évolution des effectifs cadres et salariés par grands secteurs d'activité pour \"&annéeN1","v":"Perspectives d'évolution des effectifs cadres et salariés par grands secteurs d'activité pour 2017"}]
[]
["Par grands secteurs","Croissance de l'effectif cadre","Réduction de l'effectif cadre",null,"Par grands secteurs","Croissance de l'effectif salarié","Réduction de l'effectif salarié"]
["Industrie",null,null,null,"Industrie"]
["Construction",null,null,null,"Construction"]
["Commerce",null,null,null,"Commerce"]
["Secteur",null,null,null,"Secteur"]

{"sheet":"Bretagne ","index":2,"n_rows":34,"n_cols":7,"rows_kept":34,"cut":false,"hidden":false,"merged":[]}
["BRETAGNE"]
[]
[{"$f":"\"Perspectives d'évolution des effectifs cadres et salariés par taille d'établissement pour \"&annéeN1","v":"Perspectives d'évolution des effectifs cadres et salariés par taille d'établissement pour 2017"}]
[]
["Par taille d'établissement","Croissance de l'effectif cadre","Réduction de l'effectif cadre",null,"Par taille d'établissement","Croissance de l'effectif salarié","Réduction de l'effectif salarié"]
["moins de 50 salariés",null,null,null,"moins de 50 salariés"]
["de 50 à 199 salariés",null,null,null,"de 50 à 199 salariés"]
["200 salariés et plus",null,null,null,"200 salariés et plus"]
[]
[]
[]
[]
[]
[{"$f":"\"Perspectives d'évolution des effectifs cadres et salariés par département pour \"&annéeN1","v":"Perspectives d'évolution des effectifs cadres et salariés par département pour 2017"}]
[]
["Par département","Croissance de l'effectif cadre","Réduction de l'effectif cadre",null,"Par département","Croissance de l'effectif salarié","Réduction de l'effectif salarié"]
["Côtes-d'Armor (22)",null,null,null,"Côtes-d'Armor (22)"]
["Finistère (29)",null,null,null,"Finistère (29)"]
["Ille-et-Vilaine (35)",null,null,null,"Ille-et-Vilaine (35)"]
["Morbihan (56)",null,null,null,"Morbihan (56)"]
[]
[]
[]
[]
[]
[]
[]
[{"$f":"\"Perspectives d'évolution des effectifs cadres et salariés par grands secteurs d'activité pour \"&annéeN1","v":"Perspectives d'évolution des effectifs cadres et salariés par grands secteurs d'activité pour 2017"}]
[]
["Par grands secteurs","Croissance de l'effectif cadre","Réduction de l'effectif cadre",null,"Par grands secteurs","Croissance de l'effectif salarié","Réduction de l'effectif salarié"]
["Industrie",null,null,null,"Industrie"]
["Construction",null,null,null,"Construction"]
["Commerce",null,null,null,"Commerce"]
["Secteur",null,null,null,"Secteur"]

{"sheet":"Centre-Val de Loire ","index":3,"n_rows":34,"n_cols":7,"rows_kept":34,"cut":false,"hidden":false,"merged":[]}
["CENTRE-VAL DE LOIRE"]
[]
[{"$f":"\"Perspectives d'évolution des effectifs cadres et salariés par taille d'établissement pour \"&annéeN1","v":"Perspectives d'évolution des effectifs cadres et salariés par taille d'établissement pour 2017"}]
[]
["Par taille d'établissement","Croissance de l'effectif cadre","Réduction de l'effectif cadre",null,"Par taille d'établissement","Croissance de l'effectif salarié","Réduction de l'effectif salarié"]
["moins de 50 salariés",null,null,null,"moins de 50 salariés"]
["de 50 à 199 salariés",null,null,null,"de 50 à 199 salariés"]
["200 salariés et plus",null,null,null,"200 salariés et plus"]
[]
[]
[]
[]
[]
[{"$f":"\"Perspectives d'évolution des effectifs cadres et salariés par département pour \"&annéeN1","v":"Perspectives d'évolution des effectifs cadres et salariés par département pour 2017"}]
[]
["Par département","Croissance de l'effectif cadre","Réduction de l'effectif cadre",null,"Par département","Croissance de l'effectif salarié","Réduction de l'effectif salarié"]
["Cher (18) + Indre (36)",null,null,null,"Cher (18) + Indre (36)"]
[" Loir-et-Cher (41) + Loiret (45)",null,null,null," Loir-et-Cher (41) + Loiret (45)"]
["Eure-et-Loir (28)",null,null,null,"Eure-et-Loir (28)"]
["Indre-et-Loire (37)",null,null,null,"Indre-et-Loire (37)"]
[]
[]
[]
[]
[]
[]
[]
[{"$f":"\"Perspectives d'évolution des effectifs cadres et salariés par grands secteurs d'activité pour \"&annéeN1","v":"Perspectives d'évolution des effectifs cadres et salariés par grands secteurs d'activité pour 2017"}]
[]
["Par grands secteurs","Croissance de l'effectif cadre","Réduction de l'effectif cadre",null,"Par grands secteurs","Croissance de l'effectif salarié","Réduction de l'effectif salarié"]
["Industrie",null,null,null,"Industrie"]
["Construction",null,null,null,"Construction"]
["Commerce",null,null,null,"Commerce"]
["Secteur",null,null,null,"Secteur"]

{"sheet":"Grand Est","index":4,"n_rows":34,"n_cols":7,"rows_kept":34,"cut":false,"hidden":false,"merged":[]}
["GRAND-EST"]
[]
[{"$f":"\"Perspectives d'évolution des effectifs cadres et salariés par taille d'établissement pour \"&annéeN1","v":"Perspectives d'évolution des effectifs cadres et salariés par taille d'établissement pour 2017"}]
[]
["Par taille d'établissement","Croissance de l'effectif cadre","Réduction de l'effectif cadre",null,"Par taille d'établissement","Croissance de l'effectif salarié","Réduction de l'effectif salarié"]
["moins de 50 salariés",null,null,null,"moins de 50 salariés"]
["de 50 à 99 salariés",null,null,null,"de 50 à 99 salariés"]
["de 100 à 199 salariés",null,null,null,"de 100 à 199 salariés"]
["de 200 à 499 salariés",null,null,null,"de 200 à 499 salariés"]
["500 salariés et plus",null,null,null,"500 salariés et plus"]
[]
[]
[]
[{"$f":"\"Perspectives d'évolution des effectifs cadres et salariés par département pour \"&annéeN1","v":"Perspectives d'évolution des effectifs cadres et salariés par département pour 2017"}]
[]
["Par département","Croissance de l'effectif cadre","Réduction de l'effectif cadre",null,"Par département","Croissance de l'effectif salarié","Réduction de l'effectif salarié"]
["Bas-Rhin (67)",null,null,null,"Bas-Rhin (67)"]
["Haut-Rhin (68)",null,null,null,"Haut-Rhin (68)"]
["Marne (51)",null,null,null,"Marne (51)"]
["Meurthre-et-Moselle (54)",null,null,null,"Meurthre-et-Moselle (54)"]
["Moselle (57)",null,null,null,"Moselle (57)"]
["Meuse (55) + Ardennes (08)",null,null,null,"Meuse (55) + Ardennes (08)"]
["Haute-Marne (52) + Aube (10)",null,null,null,"Haute-Marne (52) + Aube (10)"]
["Vosges (88)",null,null,null,"Vosges (88)"]
[]
[]
[]
[{"$f":"\"Perspectives d'évolution des effectifs cadres et salariés par grands secteurs d'activité pour \"&annéeN1","v":"Perspectives d'évolution des effectifs cadres et salariés par grands secteurs d'activité pour 2017"}]
[]
["Par grands secteurs","Croissance de l'effectif cadre","Réduction de l'effectif cadre",null,"Par grands secteurs","Croissance de l'effectif salarié","Réduction de l'effectif salarié"]
["Industrie",null,null,null,"Industrie"]
["Construction",null,null,null,"Construction"]
["Commerce",null,null,null,"Commerce"]
["Secteur",null,null,null,"Secteur"]

{"sheet":"Hauts-de-France","index":5,"n_rows":34,"n_cols":7,"rows_kept":34,"cut":false,"hidden":false,"merged":[]}
[{"$f":"\"HAUTS-DE-FRANCE\"","v":"HAUTS-DE-FRANCE"}]
[]
[{"$f":"\"Perspectives d'évolution des effectifs cadres et salariés par taille d'établissement pour \"&annéeN1","v":"Perspectives d'évolution des effectifs cadres et salariés par taille d'établissement pour 2017"}]
[]
["Par taille d'établissement","Croissance de l'effectif cadre","Réduction de l'effectif cadre",null,"Par taille d'établissement","Croissance de l'effectif salarié","Réduction de l'effectif salarié"]
["moins de 50 salariés",null,null,null,"moins de 50 salariés"]
["de 50 à 99 salariés",null,null,null,"de 50 à 99 salariés"]
["de 100 à 199 salariés",null,null,null,"de 100 à 199 salariés"]
["200 salariés et plus",null,null,null,"200 salariés et plus"]
[]
[]
[]
[]
[{"$f":"\"Perspectives d'évolution des effectifs cadres et salariés par département pour \"&annéeN1","v":"Perspectives d'évolution des effectifs cadres et salariés par département pour 2017"}]
[]
["Par département","Croissance de l'effectif cadre","Réduction de l'effectif cadre",null,"Par département","Croissance de l'effectif salarié","Réduction de l'effectif salarié"]
["Aisne (02)",null,null,null,"Aisne (02)"]
["Nord (59)",null,null,null,"Nord (59)"]
["Oise (60)",null,null,null,"Oise (60)"]
["Pas-de-Calais (62)",null,null,null,"Pas-de-Calais (62)"]
["Somme (80)",null,null,null,"Somme (80)"]
[]
[]
[]
[]
[]
[]
[{"$f":"\"Perspectives d'évolution des effectifs cadres et salariés par grands secteurs d'activité pour \"&annéeN1","v":"Perspectives d'évolution des effectifs cadres et salariés par grands secteurs d'activité pour 2017"}]
[]
["Par grands secteurs","Croissance de l'effectif cadre","Réduction de l'effectif cadre",null,"Par grands secteurs","Croissance de l'effectif salarié","Réduction de l'effectif salarié"]
["Industrie",null,null,null,"Industrie"]
["Construction",null,null,null,"Construction"]
["Commerce",null,null,null,"Commerce"]
["Secteur",null,null,null,"Secteur"]

{"sheet":"Ile-de-France","index":6,"n_rows":34,"n_cols":7,"rows_kept":34,"cut":false,"hidden":false,"merged":[]}
[{"$f":"\"ILE-DE-FRANCE\"","v":"ILE-DE-FRANCE"}]
[]
[{"$f":"\"Perspectives d'évolution des effectifs cadres et salariés par taille d'établissement pour \"&annéeN1","v":"Perspectives d'évolution des effectifs cadres et salariés par taille d'établissement pour 2017"}]
[]
["Par taille d'établissement","Croissance de l'effectif cadre","Réduction de l'effectif cadre",null,"Par taille d'établissement","Croissance de l'effectif cadre","Réduction de l'effectif cadre"]
["moins de 50 salariés",null,null,null,"moins de 50 salariés"]
["de 50 à 99 salariés",null,null,null,"de 50 à 99 salariés"]
["de 100 à 199 salariés",null,null,null,"de 100 à 199 salariés"]
["de 200 à 499 salariés",null,null,null,"de 200 à 499 salariés"]
["500 salariés et plus",null,null,null,"500 salariés et plus"]
[]
[]
[]
[{"$f":"\"Perspectives d'évolution des effectifs cadres et salariés par département pour \"&annéeN1","v":"Perspectives d'évolution des effectifs cadres et salariés par département pour 2017"}]
[]
["Par département","Croissance de l'effectif cadre","Réduction de l'effectif cadre",null,"Par département","Croissance de l'effectif cadre","Réduction de l'effectif cadre"]
["Paris (75)",null,null,null,"Paris (75)"]
["Seine-et-Marne (77)",null,null,null,"Seine-et-Marne (77)"]
["Yvelines (78)",null,null,null,"Yvelines (78)"]
["Essonne (91)",null,null,null,"Essonne (91)"]
["Hauts-de-Seine (92)",null,null,null,"Hauts-de-Seine (92)"]
["Seine-Saint-Denis (93)",null,null,null,"Seine-Saint-Denis (93)"]
["Val-de-Marne (94)",null,null,null,"Val-de-Marne (94)"]
["Val-d'Oise (95)",null,null,null,"Val-d'Oise (95)"]
[]
[]
[]
[{"$f":"\"Perspectives d'évolution des effectifs cadres et salariés par grands secteurs d'activité pour \"&annéeN1","v":"Perspectives d'évolution des effectifs cadres et salariés par grands secteurs d'activité pour 2017"}]
[]
["Par grands secteurs","Croissance de l'effectif cadre","Réduction de l'effectif cadre",null,"Par grands secteurs","Croissance de l'effectif cadre","Réduction de l'effectif cadre"]
["Industrie",null,null,null,"Industrie"]
["Construction",null,null,null,"Construction"]
["Commerce",null,null,null,"Commerce"]
["Secteur",null,null,null,"Secteur"]

{"sheet":"Normandie ","index":7,"n_rows":34,"n_cols":7,"rows_kept":34,"cut":false,"hidden":false,"merged":[]}
["NORMANDIE"]
[]
[{"$f":"\"Perspectives d'évolution des effectifs cadres et salariés par taille d'établissement pour \"&annéeN1","v":"Perspectives d'évolution des effectifs cadres et salariés par taille d'établissement pour 2017"}]
[]
["Par taille d'établissement","Croissance de l'effectif cadre","Réduction de l'effectif cadre",null,"Par taille d'établissement","Croissance de l'effectif salarié","Réduction de l'effectif salarié"]
["moins de 50 salariés",null,null,null,"moins de 50 salariés"]
["de 50 à 199 salariés",null,null,null,"de 50 à 199 salariés"]
["200 salariés et plus",null,null,null,"200 salariés et plus"]
[]
[]
[]
[]
[]
[{"$f":"\"Perspectives d'évolution des effectifs cadres et salariés par département pour \"&annéeN1","v":"Perspectives d'évolution des effectifs cadres et salariés par département pour 2017"}]
[]
["Par département","Croissance de l'effectif cadre","Réduction de l'effectif cadre",null,"Par département","Croissance de l'effectif salarié","Réduction de l'effectif salarié"]
["Orne (61) + Eure (27)",null,null,null,"Orne (61) + Eure (27)"]
["Calvados (14)",null,null,null,"Calvados (14)"]
["Manche (50)",null,null,null,"Manche (50)"]
["Seine-Maritime (76)",null,null,null,"Seine-Maritime (76)"]
[]
[]
[]
[]
[]
[]
[]
[{"$f":"\"Perspectives d'évolution des effectifs cadres et salariés par grands secteurs d'activité pour \"&annéeN1","v":"Perspectives d'évolution des effectifs cadres et salariés par grands secteurs d'activité pour 2017"}]
[]
["Par grands secteurs","Croissance de l'effectif cadre","Réduction de l'effectif cadre",null,"Par grands secteurs","Croissance de l'effectif cadre","Réduction de l'effectif cadre"]
["Industrie",null,null,null,"Industrie"]
["Construction",null,null,null,"Construction"]
["Commerce",null,null,null,"Commerce"]
["Secteur",null,null,null,"Secteur"]

{"sheet":"Nouvelle-Aquitaine","index":8,"n_rows":34,"n_cols":7,"rows_kept":34,"cut":false,"hidden":false,"merged":[]}
["NOUVELLE-AQUITAINE"]
[]
[{"$f":"\"Perspectives d'évolution des effectifs cadres et salariés par taille d'établissement pour \"&annéeN1","v":"Perspectives d'évolution des effectifs cadres et salariés par taille d'établissement pour 2017"}]
[]
["Par taille d'établissement","Croissance de l'effectif cadre","Réduction de l'effectif cadre",null,"Par taille d'établissement","Croissance de l'effectif salarié","Réduction de l'effectif salarié"]
["moins de 50 salariés",null,null,null,"moins de 50 salariés"]
["de 50 à 199 salariés",null,null,null,"de 50 à 199 salariés"]
["200 salariés et plus",null,null,null,"200 salariés et plus"]
[]
[]
[]
[]
[]
[{"$f":"\"Perspectives d'évolution des effectifs cadres et salariés par département pour \"&annéeN1","v":"Perspectives d'évolution des effectifs cadres et salariés par département pour 2017"}]
[]
["Par département","Croissance de l'effectif cadre","Réduction de l'effectif cadre",null,"Par département","Croissance de l'effectif salarié","Réduction de l'effectif salarié"]
["Lot-et-Garonne (47) + Landes (40)",null,null,null,"Lot-et-Garonne (47) + Landes (40)"]
["Gironde (33)",null,null,null,"Gironde (33)"]
["Deux-Sèvres (79)",null,null,null,"Deux-Sèvres (79)"]
["Pyrénées Atlantiques (64)",null,null,null,"Pyrénées Atlantiques (64)"]
["Correze (19) + Dordogne (24)",null,null,null,"Correze (19) + Dordogne (24)"]
["Creuse (23) + Haute-Vienne (87)",null,null,null,"Creuse (23) + Haute-Vienne (87)"]
["Charente (16) + Charente-Maritime (17)",null,null,null,"Charente (16) + Charente-Maritime (17)"]
[" Vienne (86)",null,null,null," Vienne (86)"]
[]
[]
[]
[{"$f":"\"Perspectives d'évolution des effectifs cadres et salariés par grands secteurs d'activité pour \"&annéeN1","v":"Perspectives d'évolution des effectifs cadres et salariés par grands secteurs d'activité pour 2017"}]
[]
["Par grands secteurs","Croissance de l'effectif cadre","Réduction de l'effectif cadre",null,"Par grands secteurs","Croissance de l'effectif salarié","Réduction de l'effectif salarié"]
["Industrie",null,null,null,"Industrie"]
["Construction",null,null,null,"Construction"]
["Commerce",null,null,null,"Commerce"]
["Secteur",null,null,null,"Secteur"]

{"sheet":"Occitanie","index":9,"n_rows":34,"n_cols":7,"rows_kept":34,"cut":false,"hidden":false,"merged":[]}
["OCCITANIE"]
[]
[{"$f":"\"Perspectives d'évolution des effectifs cadres et salariés par taille d'établissement pour \"&annéeN1","v":"Perspectives d'évolution des effectifs cadres et salariés par taille d'établissement pour 2017"}]
[]
["Par taille d'établissement","Croissance de l'effectif cadre","Réduction de l'effectif cadre",null,"Par taille d'établissement","Croissance de l'effectif salarié","Réduction de l'effectif salarié"]
["moins de 50 salariés",null,null,null,"moins de 50 salariés"]
["de 50 à 99 salariés",null,null,null,"de 50 à 99 salariés"]
["de 100 à 199 salariés",null,null,null,"de 100 à 199 salariés"]
["200 salariés et plus",null,null,null,"200 salariés et plus"]
[]
[]
[]
[]
[{"$f":"\"Perspectives d'évolution des effectifs cadres et salariés par département pour \"&annéeN1","v":"Perspectives d'évolution des effectifs cadres et salariés par département pour 2017"}]
[]
["Par département","Croissance de l'effectif cadre","Réduction de l'effectif cadre",null,"Par département","Croissance de l'effectif salarié","Réduction de l'effectif salarié"]
["Aude (11) + Lozère (48) + Pyrénées Orientales (66)",null,null,null,"Aude (11) + Lozère (48) + Pyrénées Orientales (66)"]
["Gard (30) + Hérault (34)",null,null,null,"Gard (30) + Hérault (34)"]
["Ariège (9) + Aveyron (12) + Gers (32)+ Lot (46) + Hautes-Pyrénées (65) + Tarn (81) + Tarn-et-Garonne (82)",null,null,null,"Ariège (9) + Aveyron (12) + Gers (32)+ Lot (46) + Hautes-Pyrénées (65) + Tarn (81) + Tarn-et-Garonne (82)"]
["Haute-Garonne (31)",null,null,null,"Haute-Garonne (31)"]
[]
[]
[]
[]
[]
[]
[]
[{"$f":"\"Perspectives d'évolution des effectifs cadres et salariés par grands secteurs d'activité pour \"&annéeN1","v":"Perspectives d'évolution des effectifs cadres et salariés par grands secteurs d'activité pour 2017"}]
[]
["Par grands secteurs","Croissance de l'effectif cadre","Réduction de l'effectif cadre",null,"Par grands secteurs","Croissance de l'effectif salarié","Réduction de l'effectif salarié"]
["Industrie",null,null,null,"Industrie"]
["Construction",null,null,null,"Construction"]
["Commerce",null,null,null,"Commerce"]
["Secteur",null,null,null,"Secteur"]

{"sheet":"Pays de la Loire ","index":10,"n_rows":34,"n_cols":7,"rows_kept":34,"cut":false,"hidden":false,"merged":[]}
["PAYS DE LA LOIRE"]
[]
[{"$f":"\"Perspectives d'évolution des effectifs cadres et salariés par taille d'établissement pour \"&annéeN1","v":"Perspectives d'évolution des effectifs cadres et salariés par taille d'établissement pour 2017"}]
[]
["Par taille d'établissement","Croissance de l'effectif cadre","Réduction de l'effectif cadre",null,"Par taille d'établissement","Croissance de l'effectif salarié","Réduction de l'effectif salarié"]
["moins de 50 salariés",null,null,null,"moins de 50 salariés"]
["de 50 à 99 salariés",null,null,null,"de 50 à 99 salariés"]
["de 100 à 199 salariés",null,null,null,"de 100 à 199 salariés"]
["de 200 à 499 salariés",null,null,null,"de 200 à 499 salariés"]
["500 salariés et plus",null,null,null,"500 salariés et plus"]
[]
[]
[]
[{"$f":"\"Perspectives d'évolution des effectifs cadres et salariés par département pour \"&annéeN1","v":"Perspectives d'évolution des effectifs cadres et salariés par département pour 2017"}]
[]
["Par département","Croissance de l'effectif cadre","Réduction de l'effectif cadre",null,"Par département","Croissance de l'effectif salarié","Réduction de l'effectif salarié"]
[" Mayenne (53) + Sarthe (72)",null,null,null," Mayenne (53) + Sarthe (72)"]
["Loire-Atlantique (44)",null,null,null,"Loire-Atlantique (44)"]
["Maine-et-Loire (49)",null,null,null,"Maine-et-Loire (49)"]
["Vendée (85)",null,null,null,"Vendée (85)"]
["Moselle (57)",null,null,null,"Moselle (57)"]
[]
[]
[]
[]
[]
[]
[{"$f":"\"Perspectives d'évolution des effectifs cadres et salariés par grands secteurs d'activité pour \"&annéeN1","v":"Perspectives d'évolution des effectifs cadres et salariés par grands secteurs d'activité pour 2017"}]
[]
["Par grands secteurs","Croissance de l'effectif cadre","Réduction de l'effectif cadre",null,"Par grands secteurs","Croissance de l'effectif salarié","Réduction de l'effectif salarié"]
["Industrie",null,null,null,"Industrie"]
["Construction",null,null,null,"Construction"]
["Commerce",null,null,null,"Commerce"]
["Secteur",null,null,null,"Secteur"]

{"sheet":"PACAC","index":11,"n_rows":34,"n_cols":7,"rows_kept":34,"cut":false,"hidden":false,"merged":[]}
["PROVENCE-ALPES-COTES D'AZUR-CORSE"]
[]
[{"$f":"\"Perspectives d'évolution des effectifs cadres et salariés par taille d'établissement pour \"&annéeN1","v":"Perspectives d'évolution des effectifs cadres et salariés par taille d'établissement pour 2017"}]
[]
["Par taille d'établissement","Croissance de l'effectif cadre","Réduction de l'effectif cadre",null,"Par taille d'établissement","Croissance de l'effectif salarié","Réduction de l'effectif salarié"]
["moins de 50 salariés",null,null,null,"moins de 50 salariés"]
["de 50 à 199 salariés",null,null,null,"de 50 à 199 salariés"]
["200 salariés et plus",null,null,null,"200 salariés et plus"]
[]
[]
[]
[]
[]
[{"$f":"\"Perspectives d'évolution des effectifs cadres et salariés par département pour \"&annéeN1","v":"Perspectives d'évolution des effectifs cadres et salariés par département pour 2017"}]
[]
["Par département","Croissance de l'effectif cadre","Réduction de l'effectif cadre",null,"Par département","Croissance de l'effectif salarié","Réduction de l'effectif salarié"]
["Alpes de Haute-Provence (4) +Hautes-Alpes (5) + Corse (20)",null,null,null,"Alpes de Haute-Provence (4) +Hautes-Alpes (5) + Corse (20)"]
["Alpes-Maritimes (06)",null,null,null,"Alpes-Maritimes (06)"]
["Bouches-du-Rhône (13)",null,null,null,"Bouches-du-Rhône (13)"]
["Var (83)",null,null,null,"Var (83)"]
["Vaucluse (84)",null,null,null,"Vaucluse (84)"]
[]
[]
[]
[]
[]
[]
[{"$f":"\"Perspectives d'évolution des effectifs cadres et salariés par grands secteurs d'activité pour \"&annéeN1","v":"Perspectives d'évolution des effectifs cadres et salariés par grands secteurs d'activité pour 2017"}]
[]
["Par grands secteurs","Croissance de l'effectif cadre","Réduction de l'effectif cadre",null,"Par grands secteurs","Croissance de l'effectif salarié","Réduction de l'effectif salarié"]
["Industrie",null,null,null,"Industrie"]
["Construction",null,null,null,"Construction"]
["Commerce",null,null,null,"Commerce"]
["Secteur",null,null,null,"Secteur"]

{"sheet":"feuil1","index":12,"n_rows":11,"n_cols":27,"rows_kept":11,"cut":false,"hidden":false,"merged":[]}
[2014]
[2015,null,null,null,null,null,null,null,null,null,null,null,null,null,null,null,null,null,null,null,null,null,null,null,null,null,"Prévisions pour 2018"]
[2016,null,null,null,null,null,null,null,null,null,null,null,null,null,null,null,null,null,null,null,null,null,null,null,null,null,"Répartition  des recrutements de cadres par niveau d’expérience"]
[2017,null,null,null,null,null,null,null,null,null,null,null,null,null,null,null,null,null,null,null,null,null,null,null,null,null,"Répartition  des recrutements de cadres par fonction"]
[null,null,null,null,null,null,null,null,null,null,null,null,null,null,null,null,null,null,null,null,null,null,null,null,null,null,"Répartition des recrutements de cadres par grands secteurs d'activité"]
[null,null,null,null,null,null,null,null,null,null,null,null,null,null,null,null,null,null,null,null,null,null,null,null,null,null,"Perspectives d'évolution des effectifs cadres et salariés pour 2018 par région"]
[null,null,null,null,null,null,null,null,null,null,null,null,null,null,null,null,null,null,null,null,null,null,null,null,null,null,"Historique des perspectives d'évolution des effectifs cadres et salariés dans la région"]
[null,null,null,null,null,null,null,null,null,null,null,null,null,null,null,null,null,null,null,null,null,null,null,null,null,null,"Perspectives d'évolution des effectifs cadres et salariés par taille d'établissement pour 2018"]
[null,null,null,null,null,null,null,null,null,null,null,null,null,null,null,null,null,null,null,null,null,null,null,null,null,null,"Perspectives d'évolution des effectifs cadres et salariés par département pour 2018"]
[null,null,null,null,null,null,null,null,null,null,null,null,null,null,null,null,null,null,null,null,null,null,null,null,null,null,"Perspectives d'évolution des effectifs cadres et salariés par grands secteurs d'activité pour 2018"]
[null,null,null,null,null,null,null,null,null,null,null,null,null,null,null,null,null,null,null,null,null,null,null,null,null,null,"Les informations clés de la région  "]